bitfinex-derivatives/quotes_ETHF0:USTF0_20210403
["timestamp","ask_amount","ask_price","bid_price","bid_amount"]
[1617493987924,4.89175,2005.3,2005.0,6.18188779]
[1617493988124,4.89175,2005.3,2005.0,5.19338779]
[1617493988424,4.89175,2005.3,2004.8,5.19393241]
[1617493988724,4.89175,2005.3,2004.7,5.19410644]
[1617493989723,1.9848,2005.3,2005.0,2.90695]
[1617493990125,31.9857,2006.2,2005.0,2.90695]
[1617493990525,1.9857,2006.2,2005.0,2.90695]
[1617493991025,2.0,2006.6,2005.0,2.90695]
[1617493991224,76.45,2007.1,2005.1,30.0]
[1617493991425,76.45,2007.1,2005.1,31.0068]
[1617493991825,2.90695,2006.6,2006.0,2.90695]
[1617493992027,2.90695,2006.6,2006.0,5.20005]
[1617493993025,2.90695,2006.6,2005.1,31.0068]
[1617493993226,2.90695,2006.6,2005.1,1.0068]
[1617493993428,4.92505,2006.6,2005.1,1.0068]
[1617493993828,4.0181,2006.6,2005.2,2.90695]
[1617493994030,30.0,2006.5,2005.2,2.90695]
[1617493995830,2.90695,2005.7,2005.2,2.90695]
[1617493997834,2.90695,2005.7,2005.5,2.90695]
[1617493998636,30.0,2007.0,2005.5,2.90695]
[1617493998837,76.45,2007.1,2005.5,2.90695]
[1617493999036,27.2288,2007.4,2005.5,2.90695]
[1617493999337,13.6118,2009.1,2005.6,32.1318]
[1617493999536,30.0,2009.0,2005.6,32.1318]
[1617493999740,32.0,2009.0,2005.6,32.1318]
[1617493999940,32.0,2009.0,2006.7,5.82675]
[1617494001839,2.90695,2006.8,2006.7,5.82675]
[1617494002243,32.0,2009.0,2006.7,5.82675]
[1617494003444,32.0,2009.0,2006.7,2.90695]
[1617494003943,2.90695,2006.8,2006.7,2.90695]
[1617494004645,2.90695,2006.8,2006.7,3.91235]
[1617494005246,1.7847,2008.6,2006.7,3.91235]
[1617494005547,2.0,2008.8,2006.7,5.65815]
[1617494005847,2.90695,2006.8,2006.7,5.65815]
[1617494006247,2.90695,2006.8,2006.7,1.7458]
[1617494006449,2.90695,2006.8,2005.6,5.18589107]
[1617494006647,2.90695,2006.8,2005.4,30.0]
[1617494007748,2.90695,2006.8,2005.4,35.19145726]
[1617494007948,76.786,2007.6,2006.4,6.01085]
[1617494009951,2.90695,2006.6,2006.4,6.01085]
[1617494012454,30.0,2008.5,2006.4,36.01085]
[1617494012653,81.2596,2008.6,2006.4,36.01085]
[1617494013354,81.2596,2008.6,2006.5,0.34214679]
[1617494013853,81.2596,2008.6,2007.3,2.90695]
[1617494014154,81.2596,2008.6,2007.3,3.88855]
[1617494015854,2.90695,2007.4,2007.3,3.88855]
[1617494016855,4.85895,2007.4,2007.3,2.90695]
[1617494017054,4.85895,2007.4,2006.4,0.9984]
[1617494018154,4.85895,2007.4,2007.0,3.91055]
[1617494018155,1.952,2007.4,2007.0,3.91055]
[1617494018555,113.2596,2008.6,2007.0,3.91055]
[1617494019558,113.2596,2008.6,2007.0,1.0036]
[1617494019857,113.2596,2008.6,2006.4,0.9984]
[1617494020058,4.85265,2007.1,2006.7,2.90695]
[1617494021061,2.90695,2007.1,2006.7,2.90695]
[1617494021960,2.90695,2007.3,2007.0,3.91105]
[1617494022361,140.7581,2008.6,2007.0,3.91105]
[1617494022561,113.2596,2008.6,2007.0,3.91105]
[1617494022761,83.2596,2008.6,2007.0,3.91105]
[1617494023261,83.2596,2008.6,2007.0,33.91105]
[1617494023461,2.0,2008.6,2007.0,33.91105]
[1617494023662,2.0,2009.6,2007.0,33.91105]
[1617494023861,30.0,2009.5,2007.0,33.91105]
[1617494024161,2.0,2009.4,2007.9,2.90695]
[1617494024963,30.0,2009.5,2007.9,2.90695]
[1617494026063,2.90695,2008.0,2007.9,2.90695]
[1617494029470,30.0,2009.3,2007.9,4.48615]
[1617494029971,30.0,2009.3,2008.6,2.90695]
[1617494030271,30.0,2010.2,2008.6,5.58785]
[1617494031370,2.0,2010.4,2008.6,5.58785]
[1617494031571,30.0,2010.7,2008.6,5.58785]
[1617494031770,32.0,2010.7,2008.6,5.58785]
[1617494032070,32.0,2010.7,2009.0,2.90695]
[1617494033074,30.0,2010.6,2009.0,2.90695]
[1617494033979,2.90695,2009.1,2009.0,2.90695]
[1617494035080,2.0,2010.8,2009.0,2.90695]
[1617494035879,30.0,2011.2,2009.0,32.90695]
[1617494036082,30.0,2011.3,2010.1,5.02625]
[1617494037379,73.2514,2011.4,2010.1,5.02625]
[1617494037983,2.90695,2011.2,2010.9,2.90695]
[1617494038182,2.90695,2011.2,2010.9,5.29425]
[1617494040488,2.0,2013.0,2010.9,35.29425]
[1617494040888,91.2454,2013.2,2010.9,35.29425]
[1617494041889,61.2454,2013.2,2010.9,35.29425]
[1617494042090,61.2454,2013.2,2012.3,2.90695]
[1617494042291,61.2454,2013.2,2012.3,5.24255]
[1617494042890,13.3757,2013.4,2012.3,5.24255]
[1617494043292,11.0757,2013.4,2012.3,5.24255]
[1617494043591,32.0,2013.9,2012.3,5.24255]
[1617494044092,2.90695,2012.4,2012.3,5.24255]
[1617494044694,2.90695,2012.4,2012.3,2.3356]
[1617494044906,2.90695,2012.4,2011.1,0.9915]
[1617494045103,2.90695,2012.4,2010.9,30.0]
[1617494045301,2.90695,2012.4,2010.2,30.0]
[1617494046199,32.0,2013.9,2012.1,4.84105]
[1617494046398,13.7666,2014.0,2012.1,4.84105]
[1617494048202,32.0,2014.8,2013.0,4.50145]
[1617494048401,32.0,2014.8,2013.0,1.5945]
[1617494049801,32.0,2014.8,2012.5,0.9925]
[1617494050103,2.90695,2012.6,2012.5,3.89945]
[1617494050302,2.90695,2012.6,2012.5,2.90695]
[1617494051405,13.584,2014.3,2012.5,2.90695]
[1617494052207,13.584,2014.3,2012.9,2.90695]
[1617494052408,13.584,2014.3,2012.9,4.83025]
[1617494054109,2.90695,2013.0,2012.9,4.83025]
[1617494055009,13.584,2014.3,2012.9,4.83025]
[1617494056213,43.0189,2015.0,2013.3,2.90695]
[1617494056414,15.7011,2014.9,2012.9,1.9233]
[1617494057512,15.7011,2014.9,2012.4,1.0062]
[1617494057913,13.7011,2014.9,2012.4,1.0062]
[1617494058329,13.7011,2014.9,2013.4,5.83765]
[1617494059613,13.7011,2014.9,2013.4,3.89475]
[1617494060213,2.90695,2013.5,2013.4,2.90695]
[1617494060413,5.24955,2013.5,2013.4,2.90695]
[1617494062913,2.3426,2013.5,2013.4,2.90695]
[1617494063213,13.7011,2014.9,2013.4,2.90695]
[1617494063214,15.8898,2014.9,2013.4,2.90695]
[1617494064214,13.7011,2014.9,2013.9,2.90695]
[1617494064413,34.2419,2015.6,2013.9,2.90695]
[1617494066216,2.90695,2014.0,2013.9,2.90695]
[1617494066518,2.90695,2014.0,2013.3,0.98]
[1617494068323,2.355,2015.0,2013.5,2.90695]
[1617494070228,2.90695,2013.6,2013.5,2.90695]
[1617494072630,5e-05,2013.6,2013.5,2.90695]
[1617494072831,2.0,2014.8,2013.5,2.90695]
[1617494073232,30.0,2015.4,2013.5,2.90695]
[1617494074240,30.0,2015.4,2014.5,2.90695]
[1617494074636,2.0,2015.5,2014.5,2.90695]
[1617494075236,43.5024,2016.1,2014.5,2.90695]
[1617494075438,45.5024,2016.1,2014.5,2.90695]
[1617494076236,45.5024,2016.1,2015.0,2.90695]
[1617494076437,32.0,2016.1,2015.0,2.90695]
[1617494078243,2.90695,2015.1,2015.0,2.90695]
[1617494078544,2.90695,2015.1,2013.9,1.6888]
[1617494078744,2.90695,2015.1,2013.3,30.98]
[1617494078943,2.90695,2015.1,2013.3,0.98]
[1617494080445,2.90695,2014.8,2014.7,3.89285]
[1617494080646,2.90695,2014.8,2014.7,2.90695]
[1617494082248,2.90695,2014.8,2013.3,0.98]
[1617494082447,32.90695,2014.8,2013.6,2.90695]
[1617494083059,2.0,2014.7,2013.6,2.90695]
[1617494083249,30.0,2014.6,2013.6,2.90695]
[1617494083450,2.0,2014.5,2013.6,2.90695]
[1617494083750,30.0,2014.4,2013.6,2.90695]
[1617494083950,32.0,2014.4,2012.4,1.0062]
[1617494084452,32.0,2014.4,2013.1,2.90695]
[1617494085550,32.0,2014.4,2013.1,3.90765]
[1617494085849,32.0,2014.4,2012.4,1.0062]
[1617494086451,12.9783,2014.3,2012.5,2.90695]
[1617494086651,32.0,2014.2,2012.5,2.90695]
[1617494088353,32.0,2014.2,2012.9,2.90695]
[1617494090456,2.90695,2013.0,2012.9,2.90695]
[1617494092160,2.90695,2013.0,2012.4,0.9936]
[1617494092359,2.90695,2013.0,2012.9,2.90695]
[1617494092561,2.90695,2013.0,2012.4,0.9936]
[1617494094360,2.90695,2013.0,2012.9,2.90695]
[1617494096662,2.90695,2013.0,2012.4,0.9936]
[1617494098464,2.90695,2013.0,2012.9,2.90695]
[1617494101975,4.60425,2013.0,2012.4,0.9936]
[1617494102374,2.90695,2012.5,2012.4,3.90055]
[1617494102572,5.26235,2012.5,2008.8,5.09827927]
[1617494102773,5.26235,2012.5,2009.6,30.0]
[1617494103374,35.26235,2012.5,2009.6,30.0]
[1617494103675,5.26235,2012.5,2010.1,0.34326056]
[1617494104074,2.3554,2012.5,2010.1,0.34326056]
[1617494104277,2.0,2013.9,2010.1,2.69376056]
[1617494104477,2.0,2013.9,2012.8,2.90695]
[1617494104679,2.0,2013.9,2011.1,0.9834]
[1617494104880,2.0,2013.7,2011.0,30.0]
[1617494105079,30.0,2013.6,2011.2,0.34309572]
[1617494105281,2.0,2013.5,2011.2,0.34309572]
[1617494105492,2.0,2013.5,2011.0,30.0]
[1617494105493,2.0,2013.5,2011.1,0.34309959]
[1617494105681,32.1676,2013.4,2011.1,0.34309959]
[1617494106482,32.1676,2013.4,2012.3,2.90695]
[1617494106886,34.1676,2013.4,2012.3,2.90695]
[1617494108286,2.1912,2013.9,2012.3,2.90695]
[1617494108485,2.1912,2013.9,2011.7,2.2232]
[1617494108486,2.1912,2013.9,2012.9,2.90695]
[1617494108686,30.0,2014.3,2012.9,3.90155]
[1617494109288,2.0,2014.2,2012.9,3.90155]
[1617494109488,30.0,2014.1,2012.9,3.90155]
[1617494110491,2.90695,2013.0,2012.9,3.90155]
[1617494110891,2.90695,2013.0,2012.9,2.90695]
[1617494111092,4.52655,2013.0,2012.9,2.90695]
[1617494112091,4.52655,2013.0,2011.1,0.9988]
[1617494112292,4.52655,2013.0,2010.4,30.0]
[1617494112492,31.6196,2013.0,2012.0,2.90695]
[1617494114194,31.6196,2013.0,2011.1,0.9828]
[1617494114495,1.6196,2013.0,2012.5,2.90695]
[1617494114695,1.6196,2013.0,2012.5,3.90295]
[1617494115596,1.6196,2013.0,2011.1,0.9915]
[1617494115896,1.6196,2013.0,2010.5,30.0]
[1617494116098,32.0,2013.7,2011.2,0.34342538]
[1617494116297,32.0,2013.7,2011.1,0.34346072]
[1617494116497,33.692,2013.7,2011.2,2.90695]
[1617494116698,32.0,2013.5,2011.2,3.89515]
[1617494117101,32.0,2013.5,2011.2,2.90695]
[1617494117598,32.9836,2013.5,2010.0,1.0031]
[1617494118601,2.90695,2011.1,2010.4,2.90695]
[1617494118801,5.32435,2011.1,2010.0,1.0031]
[1617494119601,5.32435,2011.1,2008.3,7.45730883]
[1617494119602,35.32435,2011.1,2008.8,5.16262751]
[1617494120103,35.32435,2011.1,2011.0,0.868]
[1617494120305,35.32435,2011.1,2008.6,0.9957]
[1617494120502,37.32435,2011.1,2008.6,0.9957]
[1617494120703,4.64305,2009.4,2009.2,2.90695]
[1617494121402,1.7361,2009.4,2009.3,1.34475547]
[1617494121803,68.6767,2011.8,2009.3,1.34475547]
[1617494121804,31.56,2011.7,2009.3,1.34475547]
[1617494122003,31.56,2011.7,2009.3,3.50965547]
[1617494122202,31.56,2011.7,2009.4,0.34382906]
[1617494122704,33.56,2011.7,2010.3,3.89195]
[1617494123302,33.56,2011.7,2010.3,2.90695]
[1617494123505,33.56,2011.7,2010.5,5.21532786]
[1617494124609,2.90695,2010.8,2010.5,5.21532786]
[1617494125511,32.90695,2010.8,2010.2,5.21591895]
[1617494125909,32.90695,2010.8,2009.3,1.0006]
[1617494126609,30.0,2010.8,2009.4,2.90695]
[1617494126810,30.0,2010.8,2009.3,1.0006]
[1617494127211,2.0,2010.7,2009.3,1.0006]
[1617494127510,30.0,2010.6,2009.3,1.0006]
[1617494127714,2.0,2010.5,2008.6,0.9957]
[1617494127910,30.0,2010.4,2008.6,0.9957]
[1617494128112,2.0,2010.3,2008.6,0.9957]
[1617494128310,30.0,2010.2,2008.6,0.9957]
[1617494128510,2.0,2010.1,2008.2,5.18910917]
[1617494128712,2.90695,2008.3,2008.2,9.10275917]
[1617494129012,2.2623,2008.3,2008.2,3.91365]
[1617494129213,2.2623,2008.3,2008.2,2.90695]
[1617494129815,32.0,2009.8,2008.2,2.90695]
[1617494129816,2.5086,2008.8,2008.2,2.90695]
[1617494130315,2.5086,2008.8,2008.2,3.90895]
[1617494130615,2.5086,2008.8,2008.7,2.90695]
[1617494131514,30.0,2009.8,2008.7,2.90695]
[1617494132018,30.0,2009.7,2008.7,2.90695]
[1617494132317,31.8536,2009.7,2008.7,2.90695]
[1617494132717,5.40775,2008.8,2008.7,2.90695]
[1617494133220,5.40775,2008.8,2008.2,1.002]
[1617494134820,5.40775,2008.8,2008.6,2.90695]
[1617494134821,2.5008,2008.8,2008.6,2.90695]
[1617494135021,2.5008,2008.8,2008.2,1.002]
[1617494135723,32.5008,2008.8,2007.7,5.19017155]
[1617494135922,32.5008,2008.8,2007.5,5.19048267]
[1617494136422,32.5008,2008.8,2007.4,5.19077432]
[1617494136721,32.5008,2008.8,2008.2,2.90695]
[1617494136921,32.5008,2008.8,2008.2,3.90755]
[1617494138123,32.5008,2008.8,2008.2,2.90695]
[1617494138724,2.90695,2008.3,2008.2,2.90695]
[1617494139124,2.5008,2008.8,2008.2,2.90695]
[1617494139324,27.9186,2009.6,2008.2,2.90695]
[1617494139523,94.29519204,2014.0,2008.2,2.90695]
[1617494139724,42.8517,2011.0,2008.2,4.89955]
[1617494140026,30.0,2011.0,2008.2,4.89955]
[1617494140723,30.0,2011.0,2009.6,2.90695]
[1617494140927,30.0,2011.6,2009.6,5.54455]
[1617494141123,15.5077,2012.1,2009.6,5.54455]
[1617494141326,13.5077,2012.1,2009.6,5.54455]
[1617494142027,30.0,2012.0,2009.6,5.54455]
[1617494142727,30.0,2012.0,2009.9,2.90695]
[1617494142927,30.0,2012.0,2009.6,2.6376]
[1617494143328,30.0,2012.0,2009.6,0.983]
[1617494143530,32.0,2012.0,2008.2,1.9926]
[1617494143828,34.3549,2012.0,2007.9,30.0]
[1617494144830,34.3549,2012.0,2009.2,2.90695]
[1617494146332,34.3549,2012.0,2008.1,0.9909]
[1617494149033,34.3549,2012.0,2009.0,2.90695]
[1617494150934,34.3549,2012.0,2009.7,2.90695]
[1617494151539,34.3549,2012.0,2009.5,1.0009]
[1617494151938,34.3549,2012.0,2008.9,1.5391]
[1617494152136,34.3549,2012.0,2008.3,1.645]
[1617494152438,34.3549,2012.0,2006.8,30.0]
[1617494152840,2.90695,2009.3,2006.8,30.0]
[1617494153040,5.15725,2009.3,2006.8,30.0]
[1617494154846,2.2503,2009.3,2008.2,2.90695]
[1617494156847,2.90695,2008.3,2008.2,2.90695]
[1617494157148,2.441,2008.3,2008.2,2.90695]
[1617494158148,2.5088,2009.9,2008.2,2.90695]
[1617494158952,2.90695,2008.5,2008.2,2.90695]
[1617494161353,1.4543,2008.9,2008.2,2.90695]
[1617494162858,2.90695,2008.3,2008.2,2.90695]
[1617494163059,1.7479,2008.3,2008.2,2.90695]
[1617494163659,1.9697,2009.4,2008.2,2.90695]
[1617494164362,14.1509,2011.1,2008.2,4.56895]
[1617494164961,14.1509,2011.1,2010.0,2.90695]
[1617494165161,14.1509,2011.1,2008.2,1.662]
[1617494166163,16.1509,2011.1,2008.2,1.662]
[1617494166462,14.1509,2011.1,2008.2,1.662]
[1617494166964,14.1509,2011.1,2009.7,2.90695]
[1617494168168,2.0,2011.0,2009.7,2.90695]
[1617494168669,30.0,2010.9,2009.7,2.90695]
[1617494169069,30.0,2011.1,2009.7,2.90695]
[1617494169270,16.1625,2011.8,2009.7,2.90695]
[1617494169670,14.1625,2011.8,2009.7,32.90695]
[1617494170070,30.0,2011.7,2009.7,32.90695]
[1617494170471,32.0,2011.7,2009.7,32.90695]
[1617494171071,32.0,2011.7,2010.6,2.90695]
[1617494171271,32.0,2011.7,2010.6,4.85605]
[1617494172674,32.0,2011.7,2009.7,30.0]
[1617494172873,34.0869,2011.7,2009.6,1.0094]
[1617494173276,4.0869,2011.7,2009.6,1.0094]
[1617494173474,30.0,2011.6,2009.6,1.0094]
[1617494173778,32.0,2011.6,2009.6,1.0094]
[1617494174376,32.0,2011.6,2008.8,30.0]
[1617494175076,32.0,2011.6,2010.2,2.90695]
[1617494176376,2.0,2011.6,2010.2,2.90695]
[1617494176676,30.0,2011.5,2010.2,2.90695]
[1617494177179,2.90695,2010.3,2010.2,2.90695]
[1617494177981,13.1755,2012.1,2010.2,5.00715]
[1617494178177,13.1755,2012.1,2010.2,35.00715]
[1617494178592,15.9948,2012.2,2010.2,35.00715]
[1617494178782,2.0,2012.2,2010.2,35.00715]
[1617494178979,2.0,2012.2,2011.1,2.90695]
[1617494179977,32.0,2012.2,2011.1,2.90695]
[1617494180178,32.0,2012.2,2010.1,1.0013]
[1617494180378,34.4781,2012.2,2010.1,1.0013]
[1617494180980,2.90695,2010.2,2010.1,1.0013]
[1617494181180,4.80495,2010.2,2010.1,1.0013]
[1617494181779,34.80495,2010.2,2009.3,0.9936]
[1617494181980,34.80495,2010.2,2008.0,30.0]
[1617494182382,34.80495,2010.2,2008.2,0.34540784]
[1617494182980,31.898,2010.2,2008.8,2.90695]
[1617494183782,31.898,2010.2,2007.1,5.14816094]
[1617494183981,33.898,2010.2,2007.1,30.0]
[1617494184481,33.898,2010.2,2008.2,0.3455476]
[1617494184683,33.898,2010.2,2006.9,31.0065]
[1617494184881,93.3524,2010.2,2006.9,31.0065]
[1617494185085,2.90695,2008.2,2007.9,2.90695]
[1617494185280,4.59965,2008.2,2006.9,1.0065]
[1617494185779,34.59965,2008.2,2007.0,0.3462704]
[1617494185983,36.59965,2008.2,2007.0,0.3462704]
[1617494186780,34.59965,2008.2,2007.0,0.3462704]
[1617494186995,4.59965,2008.2,2007.0,0.3462704]
[1617494187182,0.7057,2008.2,2007.0,0.3462704]
[1617494187385,0.2088,2008.2,2007.0,0.3462704]
[1617494189183,0.2088,2008.2,2007.1,2.90695]
[1617494190285,71.7209,2008.4,2005.9,1.0075]
[1617494190488,30.0,2008.3,2005.5,6.30076672]
[1617494190691,30.0,2008.3,2005.7,5.15517277]
[1617494190990,71.7209,2008.4,2005.2,30.0]
[1617494190991,2.90695,2007.1,2006.6,2.90695]
[1617494191191,101.7209,2008.4,2006.6,3.90365]
[1617494191493,101.7209,2008.4,2006.7,0.3457975]
[1617494192891,2.0,2008.3,2006.7,0.3457975]
[1617494193192,2.90695,2007.3,2006.9,3.89265]
[1617494194692,1.6225,2008.3,2006.9,3.89265]
[1617494194892,30.0,2008.4,2006.9,5.51425]
[1617494195093,2.90695,2007.4,2007.2,2.90695]
[1617494195396,30.0,2008.7,2007.2,2.90695]
[1617494195694,32.0,2008.7,2007.2,2.90695]
[1617494197096,2.90695,2007.3,2007.2,2.90695]
[1617494198401,32.0,2008.7,2007.2,2.90695]
[1617494198602,32.0,2008.7,2007.2,4.49025]
[1617494199203,2.90695,2007.3,2007.2,4.49025]
[1617494199604,30.0,2008.7,2007.2,4.49025]
[1617494200004,3.47455789,2012.3,2007.2,4.49025]
[1617494200005,30.0,2009.8,2007.2,4.49025]
[1617494200204,13.7913,2010.1,2007.2,34.49025]
[1617494200404,30.0,2010.0,2007.2,34.49025]
[1617494200904,2.0,2009.8,2007.2,34.49025]
[1617494201104,2.0,2009.8,2008.5,2.90695]
[1617494201105,30.0,2009.7,2008.5,2.90695]
[1617494201306,30.0,2009.7,2008.5,4.56985]
[1617494201518,110.8056,2009.3,2008.5,4.56985]
[1617494201716,110.8056,2009.3,2008.5,1.6629]
[1617494201917,110.8056,2009.3,2006.9,0.9857]
[1617494202210,112.356,2009.3,2006.9,0.9857]
[1617494202711,30.0,2009.1,2006.6,0.9967]
[1617494202911,2.0,2009.0,2006.6,0.9967]
[1617494203112,2.90695,2006.7,2006.6,0.9967]
[1617494203314,4.51175,2006.7,2006.6,0.9967]
[1617494203709,4.51175,2006.7,2006.5,2.90695]
[1617494203912,1.6048,2006.7,2006.5,2.90695]
[1617494204109,59.6365,2008.0,2006.5,2.90695]
[1617494204311,59.6365,2008.0,2006.5,4.99345]
[1617494204610,59.6365,2008.0,2006.6,30.0]
[1617494204910,58.6495,2008.0,2006.8,6.34702053]
[1617494205111,58.6495,2008.0,2007.9,2.90695]
[1617494205310,58.6495,2008.0,2007.9,5.23095]
[1617494206215,57.4308,2008.0,2007.9,35.23095]
[1617494206714,30.0,2009.8,2007.9,35.23095]
[1617494207314,2.90695,2008.0,2007.9,5.23095]
[1617494207514,2.90695,2008.0,2007.9,2.90695]
[1617494208315,2.90695,2008.0,2007.1,30.0]
[1617494208921,2.90695,2008.0,2007.0,5.19290144]
[1617494209117,2.4203,2008.1,2007.5,2.90695]
[1617494209519,1.8465,2008.6,2007.5,2.90695]
[1617494209721,13.5083,2009.2,2007.5,2.90695]
[1617494209918,2.0,2009.1,2007.5,2.90695]
[1617494210119,32.0,2009.1,2007.5,2.90695]
[1617494210318,30.0,2009.1,2007.5,2.90695]
[1617494210818,32.0,2009.1,2007.5,2.90695]
[1617494211120,32.0,2009.1,2008.0,2.90695]
[1617494211421,13.9537,2009.6,2008.0,2.90695]
[1617494211719,30.0,2009.6,2008.0,2.90695]
[1617494211920,13.9225,2010.7,2008.0,2.90695]
[1617494212121,12.9605,2010.6,2008.0,2.90695]
[1617494212521,30.0,2009.6,2008.0,2.90695]
[1617494212720,32.0,2009.6,2008.0,2.90695]
[1617494213122,2.90695,2008.2,2008.0,2.90695]
[1617494216728,5.31765,2008.2,2008.0,2.90695]
[1617494216927,5.31765,2008.2,2007.2,5.20235886]
[1617494217127,2.4107,2008.2,2007.5,2.90695]
[1617494219132,2.90695,2007.6,2007.5,2.90695]
[1617494219330,2.90695,2007.6,2006.9,0.9981]
[1617494219530,4.90025,2007.6,2006.9,0.9981]
[1617494221232,1.9933,2007.6,2006.5,6.20243297]
[1617494221533,1.9933,2007.6,2006.5,1.002]
[1617494221734,1.9933,2007.6,2006.5,6.20253594]
[1617494223033,1.9933,2007.6,2006.5,1.002]
[1617494223234,2.90695,2007.5,2007.3,2.90695]
[1617494223434,2.90695,2007.5,2006.5,1.002]
[1617494223636,2.90695,2007.5,2006.5,6.20250101]
[1617494224240,2.90695,2007.5,2006.6,5.20050253]
[1617494225239,2.90695,2007.5,2007.4,2.90695]
[1617494230346,30.0,2009.2,2007.4,2.90695]
[1617494231250,2.90695,2008.5,2008.4,2.90695]
[1617494231450,2.90695,2008.5,2008.4,5.37415]
[1617494232351,30.0,2009.2,2008.4,5.37415]
[1617494233153,30.0,2009.8,2008.4,5.37415]
[1617494233452,32.0,2009.8,2007.2,36.18139454]
[1617494233751,34.1561,2009.8,2007.2,36.18139454]
[1617494233953,34.1561,2009.8,2007.2,30.9858]
[1617494234657,34.1561,2009.8,2007.3,0.34745415]
[1617494235257,34.1561,2009.8,2008.1,2.90695]
[1617494235957,34.1561,2009.8,2007.2,36.18171745]
[1617494236358,34.1561,2009.8,2007.3,0.34745014]
[1617494236556,34.1561,2009.8,2007.3,2.00455014]
[1617494236756,34.1561,2009.8,2007.3,32.00455014]
[1617494236958,34.1561,2009.8,2007.4,5.54297596]
[1617494237159,32.0,2009.8,2007.5,30.0]
[1617494237358,2.0,2009.8,2008.9,2.90695]
[1617494237559,30.0,2009.7,2008.9,2.90695]
[1617494238262,2.0,2009.6,2008.9,2.90695]
[1617494238461,32.0,2009.6,2008.8,2.384]
[1617494239262,2.90695,2008.9,2008.8,5.29095]
[1617494239462,2.90695,2008.9,2008.8,2.384]
[1617494239664,2.90695,2008.9,2007.6,5.1985707]
[1617494240164,2.90695,2008.9,2007.7,0.34752575]
[1617494240670,2.90695,2008.9,2007.6,0.34752916]
[1617494240963,2.90695,2008.9,2007.8,0.34752665]
[1617494241164,2.90695,2008.9,2007.7,0.34752449]
[1617494241363,2.1708,2009.0,2008.1,2.90695]
[1617494242467,2.1708,2009.0,2008.1,3.91755]
[1617494242667,32.0,2009.4,2008.1,3.91755]
[1617494243268,32.0,2009.4,2008.4,2.90695]
[1617494243766,32.0,2009.8,2008.4,2.90695]
[1617494245471,2.90695,2008.5,2008.4,2.90695]
[1617494245966,2.90695,2008.5,2007.4,35.1991989]
[1617494246468,2.90695,2008.5,2007.5,0.34741066]
[1617494247471,2.3523,2008.8,2007.9,2.90695]
[1617494249572,2.90695,2008.0,2007.9,2.90695]
[1617494250374,2.90695,2008.0,2007.9,3.25448344]
[1617494251074,1.91295,2008.0,2007.9,3.25448344]
[1617494253580,1.91295,2008.0,2007.9,2.90695]
[1617494254280,2.0027,2008.3,2007.9,2.90695]
[1617494254983,2.0027,2008.3,2008.0,0.34753528]
[1617494255281,1.5909,2008.8,2007.9,2.90695]
[1617494255481,2.90695,2008.3,2007.9,2.90695]
[1617494255681,1.5762,2009.4,2007.9,2.90695]
[1617494257285,45.8388,2009.8,2007.9,2.90695]
[1617494257588,2.90695,2008.0,2007.9,2.90695]
[1617494257985,2.90695,2008.0,2007.9,3.25440924]
[1617494258485,2.90695,2008.0,2007.9,2.90695]
[1617494259386,45.8388,2009.8,2007.9,3.25458414]
[1617494259587,2.90695,2008.8,2008.3,2.90695]
[1617494259887,2.90695,2008.8,2008.3,3.91575]
[1617494260191,2.90695,2008.8,2008.3,1.0088]
[1617494261589,2.90695,2008.4,2008.3,3.91575]
[1617494264494,2.90695,2008.4,2008.3,10.3112025]
[1617494265896,2.90695,2008.4,2008.3,7.4042525]
[1617494266102,2.90695,2008.4,2008.3,1.0088]
[1617494266297,2.90695,2008.4,2008.3,7.40428029]
[1617494267099,2.90695,2008.4,2008.3,1.0088]
[1617494267399,45.8388,2009.8,2008.3,1.0088]
[1617494267599,45.8388,2009.8,2008.5,2.90695]
[1617494267802,45.8388,2009.8,2008.6,5.23233658]
[1617494268499,32.0,2009.8,2008.6,5.23233658]
[1617494268700,30.0,2009.7,2008.6,5.23233658]
[1617494269301,2.0,2010.3,2008.7,5.23174552]
[1617494269501,30.0,2010.8,2008.7,5.23174552]
[1617494269801,2.0,2010.7,2009.5,4.45285]
[1617494270001,30.0,2010.6,2009.5,1.5459]
[1617494270803,2.0,2010.5,2009.5,1.5459]
[1617494271003,32.0,2010.5,2009.3,0.982]
[1617494271202,33.8869,2010.5,2009.0,5.22356651]
[1617494271402,33.8869,2010.5,2008.9,5.22384922]
[1617494271602,2.90695,2009.0,2008.9,5.22384922]
[1617494271803,2.90695,2009.0,2008.8,5.22382579]
[1617494272303,33.8869,2010.5,2008.8,5.22382579]
[1617494272603,32.0,2010.5,2008.8,7.49232579]
[1617494273108,32.0,2010.5,2008.9,5.2237051]
[1617494273604,32.0,2010.5,2009.4,2.90695]
[1617494273804,32.0,2010.5,2009.4,4.94175]
[1617494274205,32.0,2010.9,2009.4,4.94175]
[1617494274704,32.0,2010.9,2009.4,2.0348]
[1617494275506,32.0,2010.9,2009.3,0.9854]
[1617494275706,32.0,2010.9,2009.0,8.13049493]
[1617494275707,2.90695,2009.4,2009.0,8.13049493]
[1617494275906,2.90695,2009.4,2009.0,2.90695]